bitfinex/quotes_ETHUSD_20241103
["timestamp","ask_amount","ask_price","bid_price","bid_amount"]
[1730651132942,4.06813,2458.2,2457.7,9.964548]
[1730651133367,4.06834,2458.1,2457.7,3.7973]
[1730651133531,4.06788,2458.3,2457.7,7.866]
[1730651133532,4.06801,2458.2,2457.7,7.866]
[1730651133931,4.06801,2458.2,2457.4,1.628117]
[1730651133932,0.7758,2458.1,2457.4,1.628117]
[1730651134175,4.06845,2458.0,2457.5,0.7973]
[1730651134333,4.06845,2458.0,2457.5,4.86645]
[1730651135305,4.06845,2458.0,2457.6,0.08136964]
[1730651135470,4.06845,2458.0,2457.6,4.06899]
[1730651135985,4.06845,2458.0,2457.5,1.690893]
[1730651136274,4.06845,2458.0,2457.4,3.0]
[1730651136275,4.06901,2457.6,2457.2,3.7973]
[1730651136478,4.06918,2457.5,2457.2,0.7973]
[1730651136777,4.06885,2457.7,2456.9,0.7973]
[1730651136778,4.06984,2457.1,2456.9,0.7973]
[1730651137073,4.06968,2457.2,2456.9,0.7973]
[1730651138174,4.06957,2457.3,2456.9,0.7973]
[1730651138376,8.13922,2457.3,2456.9,0.7973]
[1730651138534,4.06957,2457.3,2456.9,0.7973]
[1730651138935,4.06993,2457.1,2456.9,0.7973]
[1730651139171,8.13988,2457.1,2456.7,3.7973]
[1730651139377,4.06993,2457.1,2456.7,7.86779]
[1730651139681,4.06969,2457.2,2456.7,13.187038]
[1730651139846,4.06969,2457.2,2456.7,9.116548]
[1730651140054,4.06969,2457.2,2456.7,13.186928]
[1730651140833,4.06963,2457.3,2456.7,13.186928]
[1730651141176,8.13923,2457.3,2456.7,13.186928]
[1730651141560,4.06968,2457.2,2456.7,9.116528]
[1730651141957,4.06968,2457.2,2456.7,5.046148]
[1730651142481,4.06968,2457.2,2456.8,4.0703]
[1730651142685,4.06945,2457.4,2456.8,5.4440098]
[1730651142996,8.13889,2457.4,2456.8,9.5142298]
[1730651143136,8.13889,2457.4,2456.8,9.5141698]
[1730651143336,8.13892,2457.4,2456.8,5.4439298]
[1730651143536,8.13892,2457.4,2456.8,9.5141598]
[1730651144256,8.13892,2457.4,2456.8,5.4439298]
[1730651144257,4.06962,2457.3,2456.8,5.4439298]
[1730651145078,4.0697,2457.2,2456.8,5.4439298]
[1730651145287,4.0697,2457.2,2456.8,5.3239298]
[1730651145437,4.0697,2457.2,2456.7,3.7973]
[1730651145438,4.06987,2457.1,2456.7,3.7973]
[1730651145638,8.13979,2457.1,2456.7,3.7973]
[1730651145876,8.13979,2457.1,2456.7,0.7973]
[1730651145877,4.07001,2457.0,2456.7,0.7973]
[1730651146379,1.6272681,2457.5,2456.7,3.7973]
[1730651146686,4.06962,2457.3,2456.7,4.8922239]
[1730651146869,4.0697,2457.2,2456.7,7.86779]
[1730651147066,4.06992,2457.1,2456.7,3.7973]
[1730651148496,4.0696,2457.3,2456.7,3.7973]
[1730651148802,4.06985,2457.1,2456.7,3.7973]
[1730651149289,4.06968,2457.2,2456.7,8.654574]
[1730651149493,4.0696,2457.3,2456.8,4.1517035]
[1730651149734,8.13926,2457.3,2456.8,4.07031]
[1730651149939,4.06971,2457.2,2456.8,4.07031]
[1730651150092,4.06971,2457.2,2456.7,8.654574]
[1730651150795,4.0696,2457.3,2456.8,4.15172351]
[1730651151196,8.13921,2457.3,2456.8,4.15172351]
[1730651151543,0.98765977,2457.3,2456.8,0.08139351]
[1730651151757,0.98765977,2457.3,2456.3,1.628856]
[1730651151758,4.07035,2456.8,2456.5,3.7802]
[1730651151912,4.07035,2456.8,2456.5,0.7802]
[1730651153246,4.07058,2456.7,2456.3,3.7802]
[1730651153413,4.07035,2456.8,2456.4,0.08141079]
[1730651153615,4.07024,2456.9,2456.4,4.15237808]
[1730651153925,4.06987,2457.1,2456.6,4.07057]
[1730651154113,4.06987,2457.1,2456.5,4.85088]
[1730651154114,4.07001,2457.0,2456.5,4.85088]
[1730651154312,4.07001,2457.0,2456.5,8.92162]
[1730651154538,4.07001,2457.0,2456.6,4.07064]
[1730651154728,4.06985,2457.1,2456.7,4.962632]
[1730651154928,4.9210681,2457.3,2456.8,4.07023]
[1730651155257,4.9209381,2457.4,2456.8,4.07023]
[1730651155412,4.06961,2457.3,2456.7,9.033032]
[1730651155754,4.06961,2457.3,2456.8,4.0703]
[1730651155959,4.06961,2457.3,2456.9,0.7802]
[1730651158358,4.07033,2456.8,2456.2,0.63713722]
[1730651158511,4.07094,2456.5,2455.9,4.85192]
[1730651158715,4.07068,2456.6,2455.9,1.27149884]
[1730651158917,4.07068,2456.6,2456.0,4.07157]
[1730651159354,4.07084,2456.5,2456.0,4.07157]
[1730651160256,4.07101,2456.4,2456.0,4.07157]
[1730651160553,4.07101,2456.4,2455.9,0.7802]
[1730651160554,4.07137,2456.2,2455.9,0.7802]
[1730651161021,4.07109,2456.4,2456.0,0.08142479]
[1730651161429,4.0712,2456.3,2456.0,0.08142479]
[1730651162359,4.0712,2456.3,2455.9,0.7802]
[1730651162360,4.07136,2456.2,2455.9,0.7802]
[1730651164117,4.0712,2456.3,2455.9,3.7802]
[1730651164332,4.0712,2456.3,2456.0,0.08142317]
[1730651164544,4.0712,2456.3,2455.9,3.7802]
[1730651164748,8.14251,2456.3,2455.9,3.7802]
[1730651165161,4.86001,2456.7,2455.9,3.7802]
[1730651165162,4.07096,2456.5,2455.9,3.7802]
[1730651165468,4.07124,2456.3,2455.9,3.7802]
[1730651167981,4.07095,2456.5,2456.1,4.07148]
[1730651168285,4.07095,2456.5,2456.1,4.07147]
[1730651168444,4.07095,2456.5,2456.3,0.817]
[1730651168957,4.07061,2456.7,2456.3,0.817]
[1730651168958,4.07067,2456.6,2456.3,0.817]
[1730651169782,4.07088,2456.5,2456.1,0.817]
[1730651170088,4.07088,2456.5,2455.8,0.63718125]
[1730651170089,4.07133,2456.2,2455.8,4.45418125]
[1730651170788,0.7711,2456.5,2455.8,1.45418125]
[1730651171087,4.07182,2455.9,2455.7,0.06106843]
[1730651171385,4.07199,2455.8,2455.7,0.06106843]
[1730651171689,4.07182,2455.9,2455.7,0.06106843]
[1730651172249,8.1438,2455.9,2455.7,0.06106843]
[1730651172648,4.07182,2455.9,2455.7,0.06106843]
[1730651172848,4.84236,2456.3,2455.7,0.06106843]
[1730651173057,0.7711,2456.7,2456.2,4.07123]
[1730651173367,4.07019,2456.9,2456.5,4.07073]
[1730651173847,4.84119,2457.0,2456.4,0.817]
[1730651174054,4.07044,2456.8,2456.4,0.817]
[1730651174583,4.8412,2457.0,2456.4,4.88789]
[1730651174584,4.0701,2457.0,2456.4,4.88789]
[1730651174790,4.0701,2457.0,2456.5,4.559509]
[1730651175546,4.0701,2457.0,2456.6,4.07065]
[1730651175751,4.0701,2457.0,2456.5,4.559599]
[1730651175993,4.07017,2456.9,2456.5,0.488789]
[1730651176161,4.0701,2457.0,2456.4,4.88789]
[1730651176162,4.07034,2456.8,2456.4,4.88789]
[1730651177692,4.07017,2456.9,2456.4,4.88789]
[1730651177946,8.14022,2457.0,2456.5,4.07081]
[1730651178109,4.0701,2457.0,2456.5,4.07081]
[1730651178397,1.62193135,2457.2,2456.4,0.817]
[1730651178398,4.07043,2456.8,2456.4,0.817]
[1730651178553,4.07043,2456.8,2456.5,0.488815]
[1730651178754,4.07001,2457.0,2456.5,4.559535]
[1730651178989,4.07017,2456.9,2456.5,4.559535]
[1730651179404,4.07017,2456.9,2456.5,0.488815]
[1730651179591,4.07017,2456.9,2456.4,4.88799]
[1730651180102,4.07041,2456.8,2456.4,4.88799]
[1730651180269,4.07053,2456.7,2456.4,0.817]
[1730651180471,4.07117,2456.3,2456.1,0.7513]
[1730651181377,8.14184,2456.5,2456.1,0.7513]
[1730651181585,8.14186,2456.5,2456.1,0.7513]
[1730651181929,4.07107,2456.4,2456.1,0.7513]
[1730651182789,4.07168,2456.0,2455.7,0.06106843]
[1730651182980,4.07125,2456.3,2455.8,4.07197]
[1730651183184,4.0714,2456.2,2455.7,8.20527843]
[1730651183773,4.07151,2456.1,2455.7,4.13312843]
[1730651183995,4.07164,2456.1,2455.7,0.06106843]
[1730651184276,4.07167,2456.0,2455.7,0.06106843]
[1730651184784,4.07195,2455.9,2455.7,0.06106843]
[1730651184972,4.07165,2456.1,2455.7,0.06106843]
[1730651185173,4.07132,2456.2,2455.8,0.08143747]
[1730651185378,4.07107,2456.4,2456.0,0.7513]
[1730651185652,4.07107,2456.4,2456.0,0.83272422]
[1730651185881,0.85083135,2456.5,2456.1,4.07141]
[1730651186110,4.92136135,2456.7,2456.3,4.07114]
[1730651186984,4.92136135,2456.7,2456.2,0.49041342]
[1730651187190,4.07079,2456.6,2456.1,4.07141]
[1730651187354,4.92133135,2456.7,2456.2,4.07117]
[1730651187684,4.07068,2456.6,2456.1,4.07141]
[1730651188456,8.14149,2456.6,2456.1,4.07141]
[1730651188670,8.14149,2456.6,2456.0,0.7513]
[1730651188671,4.07101,2456.4,2456.0,0.7513]
[1730651189189,4.92159135,2456.6,2456.1,4.07147]
[1730651189190,8.99241135,2456.6,2456.1,4.07147]
[1730651189373,4.071,2456.4,2456.0,0.7513]
[1730651189751,4.071,2456.4,2456.0,4.82291]
[1730651189988,4.071,2456.4,2456.1,3.0]
[1730651190352,4.92159135,2456.6,2456.1,7.07148]
[1730651190896,2.52484923,2456.9,2456.6,4.07066]
[1730651190897,0.85083135,2456.7,2456.6,4.07066]
[1730651191098,0.85083135,2456.9,2456.7,0.7513]
[1730651191282,0.85083135,2457.1,2456.9,4.07016]
[1730651191655,0.85083135,2457.2,2456.9,4.07016]
[1730651191858,0.85083135,2457.3,2456.9,4.07016]
[1730651192264,0.85083135,2457.3,2457.0,4.15123377]
[1730651192502,0.85083135,2457.4,2457.0,8.22115377]
[1730651192662,0.85083135,2457.4,2457.0,8.13974]
[1730651193201,0.85083135,2457.4,2457.1,4.06981]
[1730651193560,0.85083135,2457.4,2457.0,4.06998]
[1730651194003,0.85083135,2457.3,2457.0,4.06998]
[1730651194298,0.85083135,2457.4,2457.0,4.06998]
[1730651195811,4.0695,2457.3,2456.9,3.0]
[1730651196099,4.92033135,2457.3,2456.8,4.07032]
[1730651196336,0.85083135,2457.2,2456.8,4.07032]
[1730651196605,0.85083135,2457.3,2456.9,4.07008]
[1730651196810,0.85083135,2457.3,2456.8,4.07032]
[1730651196991,4.92043135,2457.3,2456.8,4.07032]
[1730651197196,0.85083135,2457.2,2456.8,4.07032]
[1730651197585,8.99005135,2457.3,2456.8,4.07025]
[1730651197795,4.07042,2456.8,2456.3,4.86185]
[1730651198025,5.15585512,2456.8,2456.3,0.7907]
[1730651198592,5.15585512,2456.8,2456.3,4.86182]
[1730651199902,4.07064,2456.7,2456.3,0.7907]
[1730651200190,4.07091,2456.5,2456.1,0.7907]
[1730651200375,4.07091,2456.5,2456.0,4.07152]
[1730651201217,5.84430086,2456.6,2456.1,4.07148]
[1730651202478,5.84430086,2456.6,2456.2,4.07132]
[1730651202682,5.84430086,2456.6,2456.1,3.0]
[1730651202893,5.84428086,2456.6,2456.1,7.07147]
[1730651203814,0.85083135,2456.6,2456.2,4.07132]
[1730651204118,1.61993135,2456.7,2456.2,8.22397712]
[1730651204302,1.61993135,2456.7,2456.2,8.14256]
[1730651204537,0.85083135,2456.7,2456.3,4.07115]
[1730651204856,0.85083135,2456.9,2456.7,4.0705]
[1730651205004,0.85083135,2457.1,2456.9,4.07016]
[1730651205212,0.85083135,2457.1,2456.6,0.7907]
[1730651205213,0.85083135,2457.2,2457.0,4.06992]
[1730651205437,1.27720215,2457.3,2456.9,4.07011]
[1730651205438,0.85083135,2457.3,2456.9,4.07011]
[1730651206020,0.85083135,2457.3,2456.8,4.07022]
[1730651206207,4.92034135,2457.3,2456.8,9.112221]
[1730651206547,4.92034135,2457.3,2457.0,4.06999]
[1730651206548,0.85083135,2457.3,2457.0,4.06999]
[1730651206715,0.85083135,2457.3,2456.9,4.07015]
[1730651207842,0.85083135,2457.3,2457.0,4.06998]
[1730651208050,0.85083135,2457.3,2457.0,4.01998]
[1730651208409,0.85083135,2457.3,2456.8,5.042071]
[1730651208605,0.85083135,2457.3,2456.9,4.07016]
[1730651210032,0.85083135,2457.3,2456.9,4.07008]
[1730651210205,0.85083135,2457.3,2457.0,4.07]
[1730651210841,4.92029135,2457.4,2457.0,4.07]
[1730651211219,0.85083135,2457.3,2456.9,4.07004]
[1730651211814,4.92029135,2457.4,2456.9,4.07004]
[1730651212568,0.85083135,2457.3,2456.9,4.07004]
[1730651212971,4.92034135,2457.3,2456.9,4.07004]
[1730651213471,0.85083135,2457.3,2456.9,4.07004]
[1730651213638,0.85083135,2457.3,2456.9,8.14013]
[1730651213841,0.85083135,2457.4,2457.0,4.06998]
[1730651214157,0.85083135,2457.4,2457.1,7.15117992]
[1730651214472,5.68911135,2457.5,2457.1,3.0]
[1730651215323,9.75839135,2457.5,2457.1,3.0]
[1730651215636,4.06934,2457.4,2457.1,3.0]
[1730651216231,4.06934,2457.4,2456.9,7.962668]
[1730651216653,4.92017135,2457.4,2456.9,4.07013]
[1730651216857,4.92017135,2457.4,2457.0,4.06997]
[1730651217567,4.92017135,2457.4,2456.9,4.07013]
[1730651217568,5.68910135,2457.5,2457.1,4.15112077]
[1730651218960,0.85083135,2457.4,2457.1,4.15112077]
[1730651219566,5.68910135,2457.5,2457.1,4.15112077]
[1730651219772,0.85083135,2457.4,2457.1,4.15112077]
[1730651220073,4.92023135,2457.4,2456.9,4.07005]
[1730651220226,6.0238017,2457.4,2456.9,4.07005]
[1730651220668,4.06952,2457.3,2456.9,4.07005]
[1730651220971,4.06975,2457.2,2456.8,3.0]
[1730651221180,4.06975,2457.2,2456.8,7.07032]
[1730651221477,4.06975,2457.2,2456.8,4.07032]
[1730651221644,5.20683738,2457.2,2456.8,4.07032]
[1730651222328,4.06967,2457.2,2456.8,4.07032]
[1730651222524,4.06967,2457.2,2456.6,4.82206]
[1730651222727,4.06967,2457.2,2456.7,7.0705]
[1730651222728,4.06985,2457.1,2456.7,7.0705]
[1730651222969,4.88605,2457.1,2456.7,7.0705]
[1730651223137,0.8162,2457.1,2456.7,7.0705]
[1730651224568,0.8162,2457.1,2456.8,4.07032]
[1730651224951,4.88604,2457.1,2456.7,3.0]
[1730651225171,0.8162,2457.1,2456.7,3.0]
[1730651225376,4.07003,2457.0,2456.7,3.0]
[1730651225672,4.07003,2457.0,2456.6,4.0705]
[1730651225673,4.07048,2456.8,2456.6,0.5]
[1730651225842,4.8867,2456.7,2456.6,0.5]
[1730651226152,0.8162,2456.7,2456.6,0.5]
[1730651227449,4.8867,2456.7,2456.6,0.5]
[1730651227644,5.86748713,2456.7,2456.6,0.5]
[1730651228494,1.79698713,2456.7,2456.6,0.5]
[1730651228654,5.86748713,2456.7,2456.6,0.5]
[1730651228858,6.71831848,2456.7,2456.6,0.5]
[1730651229274,7.14468928,2456.7,2456.6,0.5]
[1730651230148,9.85850048,2456.7,2456.6,0.5]
[1730651230350,10.72026299,2456.7,2456.6,0.5]
[1730651230728,14.14605592,2456.7,2456.6,0.5]
[1730651230994,11.59129833,2456.7,2456.6,0.5]
[1730651231155,5.86748713,2456.7,2456.6,0.5]
[1730651231351,2.09457105,2456.7,2456.6,0.5]
[1730651231661,1.70427815,2456.8,2456.6,0.5]
[1730651231662,0.85213921,2456.8,2456.6,0.5]
[1730651231878,4.92252921,2456.8,2456.6,0.5]
[1730651232083,0.85213921,2456.7,2456.6,0.5]
[1730651232253,4.92263921,2456.7,2456.6,0.5]
[1730651232778,5.34967477,2456.7,2456.6,0.5]
[1730651232952,6.62791514,2456.7,2456.6,0.5]
[1730651233152,5.34967477,2456.7,2456.6,0.5]
[1730651233388,6.20181761,2456.7,2456.6,0.5]
[1730651233585,5.34967477,2456.7,2456.6,0.5]
[1730651233793,7.44411514,2456.7,2456.6,0.5]
[1730651233993,7.01805532,2456.7,2456.6,0.5]
[1730651234152,6.16587477,2456.7,2456.6,0.5]
[1730651234349,7.44411514,2456.7,2456.6,0.5]
[1730651236016,10.58396412,2456.7,2456.6,0.5]
[1730651236218,8.87968597,2456.7,2456.6,0.5]
[1730651236403,14.43626673,2456.7,2456.6,0.5]
[1730651237508,11.87968597,2456.7,2456.6,0.5]
[1730651237808,11.87821649,2456.7,2456.6,0.5]
[1730651238675,14.43479725,2456.7,2456.6,0.5]
[1730651239572,11.87821649,2456.7,2456.6,0.5]
[1730651244604,14.00527702,2456.7,2456.6,0.5]
[1730651244805,14.00527703,2456.7,2456.6,0.5]
[1730651245308,11.87821649,2456.7,2456.6,0.5]
[1730651246509,0.7692,2456.5,2456.3,2.0]
[1730651246821,12.70045899,2456.4,2456.3,2.0]
[1730651247033,14.37759089,2456.4,2456.3,2.0]
[1730651247316,0.7692,2455.6,2454.9,0.7982]
[1730651247528,4.07249,2455.5,2454.9,0.87966096]
[1730651247842,4.07283,2455.3,2454.9,1.37497906]
[1730651248046,4.07307,2455.2,2454.9,1.2935181]
[1730651248256,8.14645,2455.1,2454.9,0.7982]
[1730651248434,8.14643,2455.1,2454.9,0.7982]
[1730651248625,4.07315,2455.1,2454.9,0.7982]
[1730651248943,4.0725,2455.5,2454.6,0.8588506]
[1730651248944,4.07356,2454.9,2454.6,0.8588506]
[1730651249165,0.7692,2455.2,2454.6,0.8588506]
[1730651249166,4.07365,2454.8,2454.6,0.8588506]
[1730651249307,4.07344,2455.0,2454.6,0.8588506]
[1730651249508,4.557482,2455.1,2454.6,0.8588506]
[1730651249711,4.07369,2454.8,2454.6,0.8588506]
[1730651250032,4.07351,2454.9,2454.6,0.8588506]
[1730651250231,4.07367,2454.8,2454.6,0.8588506]
[1730651250437,4.07351,2454.9,2454.6,0.8588506]
[1730651251521,4.07368,2454.8,2454.6,0.8588506]
[1730651251747,4.07351,2454.9,2454.6,0.8588506]
[1730651251945,8.14714,2454.9,2454.6,0.8588506]
[1730651252148,4.07351,2454.9,2454.6,0.8588506]
[1730651252305,8.14714,2454.9,2454.6,0.8588506]
[1730651252707,4.07351,2454.9,2454.6,0.8588506]
[1730651253336,4.07327,2455.1,2454.6,0.8588506]
[1730651253542,4.07332,2455.0,2454.6,0.8588506]
[1730651253722,4.07327,2455.1,2454.6,5.4341793]
[1730651254053,4.07335,2455.0,2454.6,5.4341793]
[1730651256958,4.07325,2455.1,2454.7,0.958952]
[1730651257363,4.07294,2455.3,2454.8,0.8152]
[1730651257534,8.14589,2455.3,2454.8,4.88881]
[1730651257736,7.07218,2455.7,2454.6,0.0606506]
[1730651257737,0.7676,2455.2,2454.6,0.0606506]
[1730651257929,1.251627,2455.2,2454.6,0.0606506]
[1730651258127,4.07363,2454.9,2454.6,0.0606506]
[1730651258440,4.07365,2454.8,2454.6,0.0606506]
[1730651259351,4.07363,2454.9,2454.6,0.0606506]
[1730651260727,4.07324,2455.1,2454.6,0.0606506]
[1730651260958,4.07352,2454.9,2454.6,0.0606506]
[1730651261156,4.07334,2455.0,2454.6,0.0606506]
[1730651261357,4.07334,2455.0,2454.6,0.96305866]
[1730651261663,4.07315,2455.1,2454.7,0.8152]
[1730651261826,4.07335,2455.0,2454.7,0.8152]
[1730651262429,4.07356,2454.9,2454.7,0.8152]
[1730651269938,4.07334,2455.0,2454.7,0.8152]
[1730651272198,4.07324,2455.1,2454.7,1.71759706]
[1730651272472,4.07324,2455.1,2454.7,5.79131706]
[1730651272633,4.07301,2455.2,2454.7,9.86502706]
[1730651273030,4.07291,2455.3,2454.8,5.06611777]
[1730651273234,4.07274,2455.4,2455.0,0.8119]
[1730651273681,4.0726,2455.5,2455.0,0.8119]
[1730651273843,4.07267,2455.4,2455.0,4.8852]
[1730651274240,0.8163,2455.7,2455.0,0.8119]
[1730651274241,4.07292,2455.3,2455.0,0.8119]
[1730651274436,4.07298,2455.2,2454.7,4.88568]
[1730651275036,4.07298,2455.2,2454.8,4.07363]
[1730651275268,2.7138112,2455.5,2454.7,4.8857]
[1730651275469,4.07317,2455.1,2454.7,0.8119]
[1730651275975,4.07317,2455.1,2455.0,0.5]
[1730651276171,4.07299,2455.2,2455.0,0.5]
[1730651277139,8.14614,2455.2,2455.0,0.5]
[1730651277576,4.07299,2455.2,2455.0,0.5]
[1730651278069,8.14606,2455.2,2455.0,0.5]
[1730651278278,4.07299,2455.2,2455.0,0.5]
[1730651279592,4.88909,2455.4,2455.0,0.5]
[1730651279792,4.64665047,2455.4,2455.0,0.5]
[1730651279983,8.71940047,2455.4,2455.0,0.5]
[1730651280495,4.07284,2455.3,2455.0,0.5]
[1730651282404,4.07276,2455.4,2455.0,0.5]
[1730651282571,4.07276,2455.4,2455.1,0.7536]
[1730651283172,4.92347465,2455.4,2455.1,0.7536]
[1730651284191,0.85071465,2455.4,2455.1,0.7536]
[1730651284399,4.92336465,2455.4,2455.1,0.7536]
[1730651284700,0.85071465,2455.4,2455.1,0.7536]
[1730651284898,0.85071465,2455.5,2455.2,4.0729]
[1730651285105,0.85071465,2455.6,2455.2,4.0729]
[1730651285287,4.07241,2455.6,2455.1,4.82663]
[1730651285463,4.92312465,2455.6,2455.1,8.89966]
[1730651285658,4.92312465,2455.6,2455.1,4.82663]
[1730651285895,4.92312465,2455.6,2455.1,8.89971]
[1730651286099,0.85071465,2455.6,2455.2,4.0729]
[1730651286602,0.85071465,2455.6,2455.3,4.07281]
[1730651287568,0.85071465,2455.6,2455.2,4.07296]
[1730651288609,0.85071465,2455.5,2455.2,4.07296]
[1730651290377,1.27607198,2455.6,2455.2,4.07296]
[1730651290378,0.85071465,2455.4,2455.2,4.07296]
[1730651290711,0.85071465,2455.4,2455.3,4.07282]
[1730651290921,0.85071465,2455.6,2455.4,4.07265]
[1730651291086,0.85071465,2455.7,2455.6,4.07232]
[1730651292236,0.85071465,2455.7,2455.6,0.889838]
[1730651292522,0.85071465,2455.7,2455.5,4.82606]
[1730651292991,0.85071465,2455.7,2455.5,8.89846]
[1730651293488,0.85071465,2455.7,2455.5,4.826]
[1730651293823,0.85071465,2455.7,2455.5,0.7536]
[1730651294022,0.85071465,2455.7,2455.5,4.82606]
[1730651295327,0.85071465,2455.7,2455.5,0.7536]
[1730651295502,0.85071465,2455.7,2455.5,5.308608]
[1730651296412,0.85071465,2455.8,2455.5,5.308608]
[1730651296787,0.85071465,2455.8,2455.5,4.82599]
[1730651298328,0.85071465,2455.8,2455.6,4.07232]
[1730651299284,4.92280465,2455.8,2455.5,0.7536]
[1730651299491,0.85071465,2455.6,2455.2,4.89434]
[1730651300024,0.85071465,2455.6,2455.4,4.07263]
[1730651300228,0.85071465,2455.6,2455.3,4.07272]
[1730651300387,1.27607198,2455.7,2455.2,0.8215]
[1730651300388,0.85071465,2455.7,2455.2,4.89438]
[1730651300728,0.85071465,2455.6,2455.4,4.0726]
[1730651301028,0.85071465,2455.7,2455.4,4.0726]
[1730651303914,0.85071465,2455.7,2455.3,8.14539]
[1730651304430,0.85071465,2455.7,2455.4,4.07264]
[1730651306843,0.85071465,2455.7,2455.2,0.8215]
[1730651307139,1.70142931,2455.9,2455.7,4.07212]
[1730651307140,0.85071465,2455.9,2455.7,4.07212]
[1730651308349,0.85071465,2456.1,2456.0,4.07166]
[1730651308497,0.85071465,2456.3,2456.1,4.07149]
[1730651308835,0.85071465,2456.3,2456.2,4.07132]
[1730651309124,0.85071465,2456.4,2456.3,4.07116]
[1730651309326,0.85071465,2456.4,2456.2,8.14256]
[1730651309327,0.85194016,2456.4,2456.2,8.14256]
[1730651309629,0.85172747,2456.3,2456.2,4.07124]
[1730651309999,0.85172747,2456.4,2456.2,4.07124]
[1730651310203,1.27607198,2456.5,2456.2,4.07124]
[1730651310204,0.85172747,2456.5,2456.2,4.07124]
[1730651310432,0.85172747,2456.5,2456.3,4.07114]
[1730651310637,0.85172747,2456.5,2456.3,4.07106]
[1730651310955,0.85172747,2456.6,2456.3,4.89256]
[1730651311241,0.85172747,2456.6,2456.5,4.07083]
[1730651311800,0.85172747,2456.6,2456.3,4.89256]
[1730651312044,0.85172747,2456.6,2456.4,4.07098]
[1730651312841,0.85172747,2456.6,2456.4,4.07092]
[1730651313210,0.85172747,2456.6,2456.0,4.07157]
[1730651313420,4.85846,2456.5,2456.1,4.07141]
[1730651313608,5.71018747,2456.5,2456.1,4.07141]
[1730651313804,5.71018747,2456.5,2456.0,0.8078]
[1730651314038,4.07142,2456.2,2455.7,4.07204]
[1730651314238,4.07149,2456.1,2455.7,4.07204]
[1730651314539,4.07149,2456.1,2455.7,8.14412]
[1730651314540,0.7876,2456.1,2455.7,8.14412]
[1730651314745,0.7876,2456.1,2455.7,4.07204]
[1730651315108,0.7876,2456.1,2455.7,8.14409]
[1730651315510,0.7876,2456.1,2455.7,4.07204]
[1730651315922,0.7876,2456.1,2455.7,8.1441]
[1730651316265,4.85909,2456.1,2455.7,4.07204]
[1730651316541,0.7876,2456.1,2455.7,8.1441]
[1730651316908,0.7876,2456.1,2455.7,4.07204]
[1730651317109,0.7876,2456.1,2455.7,8.14411]
[1730651317885,4.92306747,2456.2,2456.1,4.07149]
[1730651317886,0.85172747,2456.2,2456.1,4.07149]
[1730651318182,0.85172747,2456.5,2456.2,4.07132]
[1730651318872,4.92256747,2456.5,2456.1,4.87927]
[1730651319074,0.85172747,2456.5,2456.1,0.8078]
[1730651319240,0.85172747,2456.5,2456.1,4.87919]
[1730651319991,0.85172747,2456.5,2456.2,4.07132]
[1730651320476,4.92258747,2456.5,2456.1,4.87929]
[1730651320637,4.92258747,2456.5,2456.1,8.95067]
[1730651320638,0.85172747,2456.5,2456.1,8.95067]
[1730651321681,1.63932747,2456.6,2456.2,4.0713]
[1730651322259,0.85172747,2456.6,2456.3,4.07107]
[1730651323672,0.85172747,2456.6,2455.8,7.07197]
[1730651323673,4.07083,2456.5,2456.0,4.07153]
[1730651323836,0.7876,2456.4,2456.0,4.07153]
[1730651324278,0.7876,2456.4,2456.0,8.14311]
[1730651324683,1.63932747,2456.4,2456.0,4.07153]
[1730651325569,1.63932747,2456.4,2456.0,8.14307]
[1730651326187,1.63932747,2456.4,2456.0,4.07153]
[1730651326490,1.63932747,2456.4,2456.0,8.1431]
[1730651326853,1.63932747,2456.4,2456.0,4.07153]
[1730651327052,0.7876,2456.4,2456.1,4.07138]
[1730651327552,1.63932747,2456.4,2456.0,4.07153]
[1730651327751,1.63932747,2456.4,2456.2,4.07132]
[1730651328069,1.63932747,2456.4,2456.0,4.07153]
[1730651328523,1.63932747,2456.4,2456.0,8.14311]
[1730651328882,2.98503054,2456.4,2455.7,0.815]
[1730651329187,8.14355,2456.0,2455.5,4.88749]
[1730651329388,0.7999,2455.8,2455.2,0.815]
[1730651329552,4.07215,2455.7,2455.2,4.88784]
[1730651329753,4.07232,2455.6,2455.2,4.88784]
[1730651330453,1.83130922,2455.7,2455.2,4.88784]
[1730651331203,0.85172747,2455.7,2455.2,4.88784]
[1730651333289,0.85172747,2455.7,2455.2,0.815]
[1730651333593,0.85172747,2455.7,2455.2,4.88793]
[1730651333789,0.85172747,2455.7,2455.3,4.07266]
[1730651333993,1.65162747,2455.8,2455.4,4.07258]
[1730651334191,0.85172747,2455.8,2455.4,0.896024]
[1730651334354,0.85172747,2455.8,2455.7,4.07215]
[1730651334557,0.85172747,2456.0,2455.7,4.07215]
[1730651339616,0.85172747,2456.0,2455.8,4.07187]
[1730651339824,0.85172747,2456.0,2455.7,4.07215]
[1730651340028,0.85172747,2456.0,2455.8,4.07198]
[1730651340410,0.85172747,2456.1,2455.8,4.07198]
[1730651340756,0.85172747,2456.0,2455.7,4.560745]
[1730651340915,0.85172747,2456.0,2455.8,4.07197]
[1730651341418,1.65162747,2455.9,2455.5,4.07235]
[1730651341752,1.65162747,2455.9,2455.6,4.0723]
[1730651341960,0.85172747,2455.9,2455.6,4.0723]
[1730651342475,0.85172747,2455.9,2455.7,4.07212]
[1730651342765,0.85172747,2456.0,2455.7,4.07212]
[1730651342919,0.85172747,2455.9,2455.7,4.07212]
[1730651343532,0.85172747,2455.9,2455.8,0.7692]
[1730651343837,0.85172747,2455.9,2455.7,4.07212]
[1730651344934,0.85172747,2456.0,2455.7,4.07212]
[1730651346282,0.85172747,2455.9,2455.8,4.07199]
[1730651346563,1.27607198,2456.1,2455.9,4.84102]
[1730651346564,0.85172747,2456.0,2455.9,4.84102]
[1730651346736,0.85172747,2456.0,2455.9,5.34102]